bitfinex/quotes_ETHUSD_20240729
["timestamp","ask_amount","ask_price","bid_price","bid_amount"]
[1722224254377,1.5643175,3352.8,3352.4,2.38628]
[1722224254517,1.2519663,3352.7,3352.4,2.38628]
[1722224255661,1.5643175,3352.8,3352.4,2.38628]
[1722224255983,1.5643175,3352.8,3352.1,7.32]
[1722224256114,0.3123512,3352.8,3352.7,2.38613]
[1722224258151,0.3123512,3352.8,3352.5,2.38622]
[1722224259561,1.56375023,3352.8,3352.5,2.38622]
[1722224259799,0.3123512,3352.8,3352.3,2.38637]
[1722224259920,2.6984212,3352.8,3352.2,2.38643]
[1722224260267,2.6984212,3352.8,3352.1,7.32]
[1722224260268,1.25139903,3352.6,3352.1,7.32]
[1722224260418,1.25139903,3352.6,3352.1,9.70655]
[1722224260615,1.25139903,3352.5,3352.1,9.70655]
[1722224261057,1.25139903,3352.4,3352.1,9.70655]
[1722224261416,1.25139903,3352.5,3352.1,9.70655]
[1722224262454,1.25139903,3352.4,3352.1,9.70655]
[1722224263158,1.25139903,3352.4,3352.1,2.38655]
[1722224263854,1.25139903,3352.4,3351.9,2.3867]
[1722224263855,1.25139903,3352.4,3351.9,2.38665]
[1722224264448,1.25139903,3352.3,3351.7,2.38679]
[1722224265083,1.25139903,3352.3,3351.9,2.3867]
[1722224265374,1.25139903,3352.2,3351.7,2.38679]
[1722224265579,1.25139903,3352.2,3352.0,2.38663]
[1722224265756,1.25139903,3352.2,3351.7,1.550379]
[1722224265757,1.25139903,3352.3,3351.9,2.3867]
[1722224266391,1.25139903,3352.4,3352.1,2.38655]
[1722224266672,1.25139903,3352.4,3351.9,2.38665]
[1722224266876,1.25139903,3352.3,3351.9,2.38665]
[1722224267083,1.25139903,3352.3,3352.0,2.38662]
[1722224267252,1.25139903,3352.2,3352.0,2.38662]
[1722224267973,1.25139903,3352.3,3352.0,2.38662]
[1722224268464,1.25139903,3352.3,3351.8,2.38673]
[1722224268897,1.25139903,3352.3,3351.9,1.3643999]
[1722224269203,0.31233228,3352.5,3352.4,2.38635]
[1722224269968,0.31233228,3352.5,3352.4,4.7727]
[1722224270401,0.31233228,3352.5,3352.4,2.38635]
[1722224270589,0.31233228,3352.5,3352.2,4.7729]
[1722224270788,0.31233228,3352.5,3352.4,2.38635]
[1722224274605,0.31233228,3352.5,3352.2,2.38643]
[1722224274920,1.56453474,3352.5,3352.2,2.38643]
[1722224275803,1.25220246,3352.4,3351.9,2.3867]
[1722224276123,1.25220246,3352.3,3352.0,2.38663]
[1722224276617,1.25220246,3352.2,3352.0,2.38663]
[1722224277015,1.25220246,3352.2,3351.8,2.38672]
[1722224277312,1.25220246,3352.1,3351.8,2.38672]
[1722224277494,1.25220246,3352.1,3352.0,2.38663]
[1722224277696,1.56530448,3352.3,3351.8,2.38672]
[1722224277697,1.25220246,3352.2,3351.8,2.38672]
[1722224277895,1.25220246,3352.2,3351.8,3.709592]
[1722224278416,1.25220246,3352.2,3351.9,2.38668]
[1722224279007,1.25220246,3352.2,3352.0,2.38662]
[1722224279204,1.25231445,3352.2,3351.8,3.709582]
[1722224280615,1.25231445,3352.2,3351.9,2.3867]
[1722224281129,1.25231445,3352.2,3351.8,1.322872]
[1722224281448,1.25231445,3352.2,3351.8,3.709642]
[1722224281596,1.25231445,3352.1,3351.9,2.3867]
[1722224281796,1.25231445,3352.2,3351.9,2.3867]
[1722224282444,1.25231445,3352.2,3352.0,2.3866]
[1722224282756,1.25231445,3352.3,3352.0,2.9962542]
[1722224283262,1.25231445,3352.3,3352.2,2.38649]
[1722224283432,1.25231445,3352.4,3352.2,2.38649]
[1722224283947,1.25231445,3352.4,3352.2,0.53826042]
[1722224284145,0.31233228,3352.5,3352.3,2.38642]
[1722224284348,0.31233228,3352.5,3352.4,2.38635]
[1722224286432,0.31233228,3352.5,3352.0,0.05965065]
[1722224286433,0.1,3353.0,3352.9,2.38599]
[1722224286634,0.41233389,3353.0,3352.9,4.77198]
[1722224287255,0.41233389,3353.0,3352.9,2.38599]
[1722224288454,0.41233389,3353.0,3352.9,2.8632]
[1722224288609,0.41233389,3353.0,3352.9,5.24919]
[1722224289449,0.41233389,3353.0,3352.9,7.63518]
[1722224289450,0.1,3353.0,3352.9,7.63518]
[1722224290617,0.1,3353.0,3352.9,10.63518]
[1722224291918,0.1,3353.0,3352.9,13.02117]
[1722224292547,0.1,3353.0,3352.9,15.64117]
[1722224292955,0.1,3353.0,3352.9,13.25518]
[1722224293264,0.1,3353.0,3352.9,8.24919]
[1722224293818,0.1,3353.0,3352.9,5.24919]
[1722224294034,0.1,3353.0,3352.9,4.77198]
[1722224294262,0.1,3353.0,3352.9,2.38599]
[1722224294942,0.1,3353.0,3352.5,2.38625]
[1722224295147,0.1,3353.0,3352.6,2.3862]
[1722224296047,2.48594,3353.0,3352.3,2.3864]
[1722224296248,2.38607,3352.8,3352.1,2.38651]
[1722224296448,0.8446705,3352.9,3352.4,2.38634]
[1722224296648,1.35171503,3353.0,3352.7,2.38612]
[1722224296848,0.1,3353.0,3352.7,2.38608]
[1722224300725,0.1,3353.0,3352.5,2.38623]
[1722224301339,0.1,3353.0,3352.8,2.38606]
[1722224302140,0.1,3353.0,3352.9,2.38599]
[1722224302346,0.1,3353.0,3352.9,2.624589]
[1722224302947,0.1,3353.0,3352.9,0.238599]
[1722224303147,0.1,3353.0,3352.6,2.38615]
[1722224303440,0.1,3353.0,3352.4,2.3863]
[1722224304134,0.1,3353.0,3352.5,2.38625]
[1722224304337,0.1,3353.0,3352.5,2.38627]
[1722224304654,2.4788,3352.9,3352.3,2.38637]
[1722224304842,2.79115871,3352.9,3352.3,2.38637]
[1722224305047,5.17714871,3352.9,3352.3,2.38637]
[1722224306082,2.38607,3352.8,3352.0,2.38661]
[1722224306263,2.79115871,3352.9,3352.4,2.38634]
[1722224306666,5.17714871,3352.9,3352.2,2.38643]
[1722224307132,5.17719871,3352.9,3352.2,2.38649]
[1722224307338,1.04748658,3352.8,3352.3,2.3864]
[1722224307533,1.04748658,3352.8,3352.1,2.38655]
[1722224307951,3.43354658,3352.8,3352.1,2.38655]
[1722224308162,2.38613,3352.7,3351.9,7.32]
[1722224309370,1.2498516,3352.6,3351.9,7.32]
[1722224309574,1.71819842,3352.5,3351.9,7.32]
[1722224309736,2.38635,3352.4,3351.9,7.32]
[1722224309939,1.71819842,3352.5,3351.9,7.32]
[1722224310346,1.56231451,3352.6,3351.9,9.7067]
[1722224310347,3.6360616,3352.6,3351.9,9.7067]
[1722224310561,1.2498516,3352.5,3351.9,9.7067]
[1722224310756,2.38621,3352.6,3351.9,9.7067]
[1722224310757,3.6360616,3352.6,3351.9,2.3867]
[1722224310980,1.2498516,3352.6,3351.7,0.05966184]
[1722224311187,4.04101031,3352.9,3352.6,2.3862]
[1722224311477,0.31235871,3352.9,3352.8,2.38606]
[1722224315001,0.31235871,3352.9,3352.8,4.77212]
[1722224315321,0.31235871,3352.9,3352.8,7.15818]
[1722224315514,0.1,3353.0,3352.4,2.38629]
[1722224315515,0.1,3353.0,3352.9,7.15797]
[1722224315805,0.1,3353.0,3352.9,7.873767]
[1722224317027,0.1,3353.0,3352.9,10.259757]
[1722224317185,0.1,3353.0,3352.9,13.259757]
[1722224318476,0.1,3353.0,3352.9,10.873767]
[1722224320513,0.1,3353.0,3352.9,7.873767]
[1722224324270,0.1,3353.0,3352.9,5.487777]
[1722224327082,0.1,3353.0,3352.9,7.873767]
[1722224327285,0.1,3353.0,3352.9,5.487777]
[1722224328041,0.1,3353.0,3352.9,7.873767]
[1722224328240,0.1,3353.0,3352.9,5.487777]
[1722224330331,0.1,3353.0,3352.9,7.873767]
[1722224330766,0.1,3353.0,3352.9,5.487777]
[1722224331068,0.1,3353.0,3352.9,2.38599]
[1722224333863,0.1,3353.0,3352.7,2.38608]
[1722224334081,0.1,3353.0,3352.8,2.38604]
[1722224334398,0.1,3353.0,3352.9,2.38599]
[1722224335260,0.1,3353.0,3352.9,4.77198]
[1722224341403,0.1,3353.0,3352.4,5.37631]
[1722224341404,0.1,3353.0,3352.7,2.38608]
[1722224341581,0.1,3353.0,3352.9,2.38599]
[1722224341983,0.1,3353.0,3352.7,2.38608]
[1722224342307,0.1,3353.0,3352.8,2.38603]
[1722224342605,0.1,3353.0,3352.9,2.38599]
[1722224344210,0.1,3353.0,3352.6,2.38618]
[1722224344566,0.1,3353.0,3352.7,2.38612]
[1722224344991,0.1,3353.0,3352.8,2.386]
[1722224345398,0.1,3353.0,3352.9,2.38599]
[1722224348919,0.1,3353.0,3352.7,2.38612]
[1722224349421,0.1,3353.0,3352.5,2.38625]
[1722224349422,0.26616446,3353.0,3352.5,2.38625]
[1722224349724,2.3017,3352.9,3352.3,7.32]
[1722224349925,3.55102298,3352.9,3352.5,2.38626]
[1722224350124,4.85943721,3352.9,3352.5,2.38626]
[1722224350333,0.31237763,3352.8,3352.5,2.38626]
[1722224351131,0.31237763,3352.8,3352.3,9.70637]
[1722224351282,0.31237763,3352.8,3352.3,7.32]
[1722224351587,0.31237763,3352.8,3352.3,9.70641]
[1722224351794,1.2510882,3352.8,3352.3,9.70641]
[1722224352518,1.2510882,3352.8,3352.3,2.38641]
[1722224352714,2.50041118,3352.8,3352.4,2.38634]
[1722224352914,2.50041118,3352.8,3352.5,2.38626]
[1722224353078,2.50041118,3352.8,3352.7,2.38613]
[1722224353079,0.31237763,3352.8,3352.7,2.38613]
[1722224354301,0.31237763,3352.8,3352.7,4.77226]
[1722224354798,0.31237763,3352.8,3352.7,2.38613]
[1722224354995,0.31237763,3352.8,3352.6,2.38619]
[1722224355587,0.31237763,3352.8,3352.3,2.38638]
[1722224355889,0.31237763,3352.8,3352.5,2.38625]
[1722224356094,0.31237763,3352.8,3352.4,2.38634]
[1722224356518,1.56293175,3352.8,3352.4,2.38634]
[1722224356901,0.31237763,3352.8,3352.4,2.38634]
[1722224357416,1.56293175,3352.8,3352.4,2.38634]
[1722224357650,1.56293175,3352.8,3352.5,2.38626]
[1722224357828,0.31237763,3352.8,3352.5,2.38626]
[1722224358144,0.31237763,3352.8,3352.3,2.38636]
[1722224358351,0.31237763,3352.8,3352.4,2.38634]
[1722224359337,1.56293175,3352.8,3352.4,2.38634]
[1722224359953,1.56293175,3352.8,3352.2,2.38647]
[1722224360114,2.36281814,3352.8,3352.3,2.38641]
[1722224360725,2.36281814,3352.8,3352.4,2.38633]
[1722224361245,2.3155,3352.7,3352.3,2.38641]
[1722224362131,2.3155,3352.7,3352.4,2.3863]
[1722224362331,2.3155,3352.7,3352.4,2.38629]
[1722224365439,2.3155,3352.7,3352.2,4.7729]
[1722224365750,2.3155,3352.7,3352.4,2.38628]
[1722224368527,2.3155,3352.7,3352.5,2.38627]
[1722224368871,0.31237763,3352.8,3352.7,2.38613]
[1722224369049,0.31237763,3352.8,3352.7,4.77226]
[1722224369626,0.1,3353.0,3352.9,4.77198]
[1722224375979,0.1,3353.0,3352.8,2.38605]
[1722224376680,1.35055412,3353.0,3352.6,2.38615]
[1722224376974,1.25055412,3352.8,3352.6,2.38615]
[1722224377351,1.25055412,3352.8,3352.7,2.38613]
[1722224377958,1.66552837,3353.0,3352.8,2.38606]
[1722224378144,1.66552837,3353.0,3352.9,2.38599]
[1722224378481,1.35267558,3353.0,3352.9,2.38599]
[1722224379846,0.1,3353.0,3352.9,2.38599]
[1722224380357,1.35267558,3353.0,3352.9,2.38599]
[1722224381378,0.1,3353.0,3352.9,2.38599]
[1722224381879,0.1,3353.0,3352.7,2.38613]
[1722224382187,0.1,3353.0,3352.8,2.38606]
[1722224382188,1.25273199,3352.9,3352.8,2.38606]
[1722224382388,1.35273199,3353.0,3352.8,2.38606]
[1722224383399,1.25273199,3352.9,3352.8,2.38606]
[1722224383551,1.35273199,3353.0,3352.8,2.38606]
[1722224383988,1.25273199,3352.9,3352.3,7.32]
[1722224384153,1.25273199,3352.9,3352.5,2.38625]
[1722224384783,1.25273199,3352.9,3352.6,2.3862]
[1722224385055,1.25273199,3352.8,3352.6,2.3862]
[1722224386088,1.56508509,3352.9,3352.6,2.3862]
[1722224386271,1.56516644,3352.9,3352.6,2.3862]
[1722224386674,2.36233775,3352.9,3352.4,2.38634]
[1722224386876,1.25281334,3352.6,3352.3,7.32]
[1722224387064,1.25281334,3352.5,3352.3,7.32]
[1722224387667,1.25281334,3352.4,3352.3,7.32]
[1722224388192,1.25281334,3352.4,3352.0,2.38658]
[1722224388193,1.56601668,3352.4,3352.0,2.38662]
[1722224388383,1.25303064,3352.3,3352.0,2.38662]
[1722224388782,1.25288118,3352.3,3352.2,2.38649]
[1722224389307,1.25288118,3352.3,3352.0,2.38662]
[1722224389619,1.25284277,3352.3,3352.0,2.38662]
[1722224390025,1.25284277,3352.3,3352.1,2.38655]
[1722224390631,2.48595,3353.0,3352.5,2.38627]
[1722224390632,0.3123531,3352.9,3352.5,2.38627]
[1722224390921,0.3123531,3352.9,3352.8,4.77212]
[1722224391922,0.3123531,3352.9,3352.8,7.15818]
[1722224392801,0.3123531,3352.9,3352.8,4.77212]
[1722224394395,0.3123531,3352.9,3352.8,5.249332]
[1722224394705,0.3123531,3352.9,3352.8,4.77212]
[1722224398398,0.3123531,3352.9,3352.8,2.38606]
[1722224399355,0.3123531,3352.9,3352.2,9.70649]
[1722224399356,2.2757,3352.8,3352.2,7.32]
[1722224399645,1.2523283,3352.5,3352.2,7.32]
[1722224399849,1.2523283,3352.3,3352.2,7.32]
[1722224400050,1.2523283,3352.3,3352.2,9.70649]
[1722224400251,1.2523283,3352.3,3352.2,7.32]
[1722224400430,1.56517917,3352.4,3352.2,7.32]
[1722224400632,1.56517917,3352.4,3352.3,4.77284]
[1722224400837,0.31239875,3352.5,3352.4,4.7727]
[1722224401551,0.31239875,3352.5,3352.4,2.38635]
[1722224401751,2.58809875,3352.5,3352.2,7.32]
[1722224401908,1.25219732,3352.4,3352.2,9.70644]
[1722224402305,1.56459607,3352.5,3352.4,2.38635]
[1722224402505,0.31239875,3352.5,3352.4,4.7727]
[1722224402904,0.31239875,3352.5,3352.4,2.38635]
[1722224405725,0.31239875,3352.5,3352.4,4.7727]
[1722224406459,0.31239875,3352.5,3352.4,5.488622]
[1722224408325,1.35217042,3353.0,3352.8,2.386]
[1722224408864,1.25217042,3352.9,3352.8,2.386]
[1722224410332,1.25204439,3352.9,3352.8,2.386]
[1722224411046,1.66505549,3353.0,3352.8,2.386]
[1722224411251,1.25208895,3352.9,3352.8,2.386]
[1722224411778,0.1,3353.0,3352.9,2.38599]
[1722224411933,1.35208895,3353.0,3352.9,2.38599]
[1722224412257,0.1,3353.0,3352.9,2.38599]
[1722224413141,0.41235153,3353.0,3352.9,2.38599]
[1722224413690,0.41235153,3353.0,3352.9,4.77198]
[1722224414391,0.41235153,3353.0,3352.9,2.38599]
[1722224415935,0.41235153,3353.0,3352.9,4.77198]
[1722224416599,0.41235153,3353.0,3352.9,5.487794]
[1722224418651,0.41235153,3353.0,3352.9,7.873784]
[1722224419057,0.1,3353.0,3352.9,7.873784]
[1722224421212,0.31230864,3353.6,3353.5,11.95104]
[1722224421359,1.25208895,3354.7,3354.2,2.38503]
[1722224421556,0.31225643,3354.7,3354.5,2.3848]
[1722224422401,0.31225643,3354.7,3354.6,2.38478]
[1722224422608,0.31225643,3354.7,3354.6,4.76956]
[1722224424558,0.31225643,3354.7,3354.6,2.38478]
[1722224425160,0.31225643,3354.7,3354.6,5.246521]
[1722224425609,0.31225643,3354.7,3354.6,7.69091125]
[1722224425903,2.4349,3355.7,3355.3,2.38428]
[1722224426418,0.31213922,3355.6,3355.3,2.38428]
[1722224427487,0.31213922,3355.6,3355.1,2.38442]
[1722224428809,0.31213922,3355.6,3354.9,9.70454]
[1722224429379,0.31213922,3355.6,3355.0,2.3845]
[1722224430307,0.31213922,3355.6,3355.1,2.38438]
[1722224431224,0.31213922,3355.6,3355.2,2.38435]
[1722224431430,0.31213922,3355.6,3355.3,2.38427]
[1722224431779,2.54880392,3355.5,3354.9,7.32]
[1722224431975,2.62,3355.4,3354.9,7.32]
[1722224432210,5.00426,3355.4,3354.9,7.32]
[1722224433207,2.38435,3355.3,3354.9,7.32]
[1722224433405,2.38439,3355.2,3354.9,7.32]
[1722224433813,5.00423,3355.4,3354.9,7.32]
[1722224433999,6.08415531,3355.4,3354.9,7.32]
[1722224434337,2.38428,3355.3,3354.9,7.32]
[1722224434687,2.3844,3355.2,3354.9,7.32]
[1722224435279,8.46842531,3355.4,3354.9,7.32]
[1722224435517,6.08416531,3355.4,3354.9,7.32]
[1722224435719,6.08416531,3355.4,3354.5,22.14483]
[1722224435899,6.08416531,3355.4,3354.6,2.38475]
[1722224436334,2.54880392,3355.5,3354.8,2.38457]
[1722224436889,4.93294392,3355.5,3354.8,2.38457]
[1722224437487,2.54880392,3355.5,3354.8,2.38457]
[1722224437687,2.2741,3355.5,3354.7,2.38469]
[1722224437935,2.2741,3355.5,3354.8,2.38458]
[1722224438435,2.2741,3355.5,3354.7,2.38469]
[1722224438436,4.65824,3355.5,3354.7,2.38469]
[1722224439449,2.38423,3355.4,3354.7,2.38469]
[1722224439733,4.65824,3355.5,3354.7,2.38469]
[1722224439942,2.38421,3355.4,3354.7,2.38469]
[1722224440301,3.00953892,3355.5,3354.8,2.38464]
[1722224440516,4.65825,3355.5,3354.8,2.38464]
[1722224443956,0.31213922,3355.6,3355.1,2.38436]
[1722224444111,0.31213922,3355.6,3355.3,2.38427]
[1722224444512,0.31213922,3355.6,3355.1,2.38436]
[1722224445249,0.31213922,3355.6,3355.2,2.38435]
[1722224445835,0.31213922,3355.6,3355.0,2.38446]
[1722224446145,0.31213922,3355.6,3355.0,2.38448]
[1722224447862,2.69620922,3355.6,3354.8,2.38464]
[1722224448150,3.69364014,3355.6,3354.8,2.38464]
[1722224448454,3.69364014,3355.6,3354.9,2.38457]
[1722224448618,2.69620922,3355.6,3354.9,2.38457]
[1722224451749,2.38419,3355.5,3354.7,2.3847]
[1722224451948,0.31213922,3355.6,3354.9,2.38455]
[1722224452479,2.69624922,3355.6,3354.9,2.38455]
[1722224453345,2.4704,3355.4,3354.5,7.32]
[1722224453551,2.38449,3355.1,3354.5,7.32]
[1722224453968,2.38432,3355.3,3354.5,7.32]
[1722224454185,0.31217354,3355.0,3354.5,7.32]
[1722224454771,0.31217354,3355.0,3354.5,9.70485]
[1722224456779,0.31217354,3355.0,3354.5,2.38485]
[1722224458789,0.31217354,3355.0,3354.3,2.38494]
[1722224459358,2.69672354,3355.0,3354.1,9.70511]
[1722224459692,2.69672354,3355.0,3354.3,2.38499]
[1722224461092,3.94551585,3355.0,3354.3,2.38499]
[1722224461977,1.24879231,3354.9,3354.3,2.38499]
[1722224462801,1.24879231,3354.8,3354.3,2.38499]
[1722224463296,2.33879231,3354.8,3354.4,2.38491]
[1722224463472,1.09,3354.8,3354.4,2.38491]
[1722224463673,1.09,3354.8,3354.3,2.6744611]
[1722224463977,1.09,3354.8,3354.2,2.38504]
[1722224464281,1.09,3354.8,3354.3,2.38497]
[1722224464689,2.33879231,3354.8,3354.3,2.38497]
[1722224464888,2.33879231,3354.8,3354.5,2.38484]
[1722224465078,1.24879231,3354.7,3354.5,2.38484]
[1722224465398,1.24879231,3354.7,3354.3,4.76989]
[1722224465561,1.24879231,3354.7,3354.4,3.593909]
[1722224465983,2.33879231,3354.8,3354.4,3.593909]
[1722224466186,1.24879231,3354.7,3354.4,3.593909]
[1722224466406,2.33879231,3354.8,3354.4,3.593909]
[1722224466581,1.24879231,3354.7,3354.4,3.593909]
[1722224466902,1.24879231,3354.7,3354.5,2.38485]
[1722224467087,1.24879231,3354.7,3354.4,3.593909]
[1722224467703,1.24879231,3354.7,3354.4,1.208989]
[1722224468012,1.56417173,3354.8,3354.2,2.38505]
[1722224468013,1.24879231,3354.6,3354.2,2.38505]
[1722224468187,1.24879231,3354.6,3354.4,2.38485]
[1722224468380,1.56417173,3354.8,3354.5,2.38485]
[1722224468381,1.24879231,3354.7,3354.5,2.38485]
[1722224468899,1.25245655,3354.6,3354.5,2.38485]
[1722224469269,1.25245655,3354.7,3354.5,2.38485]
[1722224469463,1.25245655,3354.6,3354.5,2.38485]
[1722224469668,0.31217354,3355.0,3354.7,2.38471]
[1722224469669,1.25245655,3354.9,3354.7,2.38471]
[1722224470401,0.31217354,3355.0,3354.9,2.38457]
[1722224471189,0.31217354,3355.0,3354.9,4.76914]
[1722224474787,0.31217354,3355.0,3353.8,1.55635181]
[1722224474788,2.4047,3354.9,3353.9,2.38525]
[1722224474989,2.34247242,3354.3,3353.9,2.38525]
[1722224475185,1.25247242,3354.2,3353.9,2.38525]
[1722224475806,0.38068735,3354.8,3352.7,2.38611]
[1722224475807,2.38541,3353.8,3352.7,2.38611]
[1722224476004,1.09,3354.0,3352.3,2.38641]
[1722224476005,1.09,3352.8,3352.3,2.38641]
[1722224476191,1.09,3352.6,3352.4,2.38634]
[1722224476390,1.09,3352.6,3352.1,2.38655]
[1722224476391,1.09,3352.6,3352.2,2.38648]
[1722224477117,1.25270086,3352.7,3352.1,2.38655]
[1722224477275,2.65587607,3352.9,3352.4,2.38633]
[1722224477276,1.25270086,3352.8,3352.4,2.38633]
[1722224477476,1.25270086,3352.9,3352.4,2.38633]
[1722224477701,1.25270086,3352.9,3352.2,2.38645]
[1722224477899,1.25270086,3352.9,3352.0,2.38663]
[1722224478108,1.25016721,3352.8,3352.0,2.38663]
[1722224478311,2.38614,3352.7,3351.8,2.38672]
[1722224478530,4.27995081,3353.2,3351.3,2.4437]
[1722224478531,1.25016721,3353.0,3351.4,0.05966102]
[1722224478689,1.25016721,3353.0,3352.3,2.38641]
[1722224479122,1.25016721,3353.1,3352.3,2.38641]
[1722224479321,3.63601721,3353.1,3352.3,2.38641]
[1722224479525,3.63601721,3353.1,3352.1,2.38655]
[1722224479526,2.386,3352.9,3352.1,2.38655]
[1722224479728,1.25016721,3353.1,3352.2,2.38645]
[1722224479729,2.38586,3353.1,3352.2,2.38645]
[1722224479886,3.63602721,3353.1,3352.2,2.38645]
[1722224480076,1.25016721,3353.0,3352.2,2.38645]
[1722224480496,3.63602721,3353.1,3352.2,2.38645]
[1722224480721,2.38586,3353.1,3352.2,2.38645]
[1722224480926,3.63602721,3353.1,3352.2,2.38645]
[1722224481085,2.38586,3353.1,3352.2,2.38645]
[1722224481423,3.65486721,3353.2,3352.3,2.38641]
[1722224481745,4.79048,3353.2,3352.3,2.38641]
[1722224482037,6.04064721,3353.2,3352.1,2.38652]
[1722224482185,2.38586,3353.1,3352.1,2.38652]
[1722224482380,2.38604,3352.9,3351.8,2.38676]
[1722224482688,2.38608,3352.8,3351.8,2.38676]
[1722224483116,2.38614,3352.7,3351.8,2.38676]
[1722224483422,2.38614,3352.7,3351.7,5.38683]
[1722224483622,2.38614,3352.7,3351.7,3.896218]
[1722224484741,2.38622,3352.6,3351.7,2.38683]
[1722224485284,2.3143,3352.5,3351.7,2.38683]
[1722224485483,2.91837272,3353.0,3351.9,2.38668]
[1722224485742,2.3143,3353.0,3351.9,2.38668]
[1722224486586,2.3143,3353.0,3352.0,2.38659]
[1722224486986,4.70024,3353.0,3352.0,2.38659]
[1722224487191,4.6998,3353.6,3352.6,2.38619]
[1722224487391,0.59499672,3353.5,3352.4,2.38633]
[1722224487593,4.6998,3353.6,3352.4,2.38633]
[1722224488484,2.3143,3353.6,3351.6,10.32]
[1722224488702,2.3143,3353.6,3352.0,7.32]
[1722224488703,2.38568,3353.4,3352.0,7.32]
[1722224488935,2.38568,3353.4,3352.1,0.732]
[1722224489120,2.617,3353.5,3352.6,2.3862]
[1722224489627,2.617,3353.5,3352.4,7.32]
[1722224489628,0.23143,3353.5,3352.4,7.32]
[1722224489833,0.23143,3353.5,3352.8,2.38605]
[1722224490034,0.493116,3353.4,3352.8,2.38605]
[1722224491838,0.23143,3353.5,3352.8,2.38605]
[1722224493094,0.23143,3353.5,3352.6,2.3862]
[1722224493710,2.61701,3353.5,3352.7,2.38613]
[1722224493904,2.38571,3353.3,3352.4,7.32]
[1722224494105,0.261714,3353.2,3352.4,7.32]
[1722224494515,2.617,3353.5,3352.5,2.38627]
[1722224494838,2.4907,3353.0,3352.4,7.32]
[1722224494995,4.87662,3353.0,3352.4,7.32]
[1722224495199,2.38611,3352.8,3352.4,7.32]
[1722224495398,3.167403,3352.7,3351.9,2.38669]
[1722224495631,3.167403,3352.7,3351.8,29.55677]
[1722224496340,0.781273,3352.7,3351.8,29.55677]
[1722224496923,0.781273,3352.7,3351.9,2.38668]
[1722224497224,0.55,3352.9,3352.0,2.38663]
[1722224497538,2.93599,3352.9,3352.0,2.38663]
[1722224497739,2.38607,3352.8,3351.8,29.55677]
[1722224498234,2.38642,3352.3,3351.8,7.32]
[1722224498536,2.625142,3352.2,3351.8,7.32]
[1722224498709,4.87727,3352.1,3351.8,7.32]
[1722224498915,2.38695,3351.6,3351.0,2.99]
[1722224499114,2.38689,3351.7,3350.8,7.32]
[1722224499315,0.55,3351.6,3350.8,8.290762]
[1722224499723,2.93694,3351.6,3350.8,8.290762]
[1722224500836,0.55,3351.6,3350.8,8.290762]
[1722224501039,2.3462,3351.5,3350.8,7.32]
[1722224501235,4.73319,3351.5,3350.8,7.32]
[1722224501955,2.3462,3351.5,3350.8,7.32]
[1722224504909,4.7332,3351.5,3350.8,7.32]
[1722224505348,3.113198,3351.5,3350.5,7.32]
[1722224505543,2.93711,3351.4,3350.5,7.32]
[1722224505951,2.3872,3351.2,3350.5,7.32]
[1722224506354,2.93711,3351.4,3350.5,7.32]
[1722224506355,2.38728,3351.1,3350.5,7.32]
[1722224506757,0.55,3351.0,3350.5,7.32]
[1722224508190,2.93737,3351.0,3350.5,7.32]
[1722224508399,3.469835,3351.0,3350.5,7.32]
[1722224510053,3.469835,3351.0,3350.1,9.70796]
[1722224510383,3.469835,3351.0,3350.2,2.3879]
[1722224510384,1.082465,3351.0,3350.2,2.3879]
[1722224510587,1.082465,3351.0,3350.3,2.38784]
[1722224510588,0.55,3351.0,3350.3,2.38784]
[1722224510977,2.38715,3351.3,3350.3,2.38784]
[1722224510978,0.55,3351.2,3350.3,2.38784]
[1722224511679,2.3462,3351.5,3350.7,2.38755]
[1722224511988,3.0,3351.4,3350.7,2.38755]
[1722224512156,2.3462,3351.5,3350.7,2.38755]
[1722224512364,2.91207458,3351.5,3350.5,2.38765]
[1722224512565,2.91207458,3351.5,3350.3,2.38782]
[1722224512566,3.0,3351.4,3350.6,2.38762]
[1722224512814,3.0,3351.4,3350.5,2.38769]
[1722224513015,2.3462,3351.5,3350.8,2.38748]
[1722224514371,5.53775358,3351.5,3350.6,2.38762]
[1722224514571,3.55,3351.4,3350.5,7.32]
[1722224514797,5.93707,3351.4,3350.5,7.32]
[1722224515509,5.93707,3351.4,3350.5,9.7077]
[1722224515715,7.08453936,3351.4,3350.5,9.7077]
[1722224515884,4.69746936,3351.4,3350.5,9.7077]
[1722224516088,3.55,3351.4,3350.5,9.7077]
[1722224516392,3.55,3351.4,3350.7,2.3875]
[1722224516973,3.55,3351.4,3350.5,12.09535]
[1722224517213,3.55,3351.4,3350.6,2.38762]
[1722224518399,3.55,3351.4,3350.7,2.38749]
[1722224519289,0.90876736,3351.3,3350.5,7.32]
[1722224519496,2.9372,3351.2,3350.5,7.32]
[1722224519981,2.38727,3351.1,3350.5,7.32]
[1722224520180,0.55,3351.0,3350.5,7.32]
[1722224520374,2.2808,3350.9,3350.5,6.709224]
[1722224520592,0.55,3350.8,3350.5,6.709224]
[1722224520840,0.55,3350.8,3350.1,2.38794]
[1722224521878,0.55,3350.8,3350.2,2.38791]
[1722224523580,0.55,3350.8,3350.3,2.38784]
[1722224523882,3.29592736,3351.3,3350.3,2.38784]
[1722224523883,3.29906736,3351.3,3350.6,2.38762]
[1722224525182,3.29906736,3351.3,3350.7,2.38755]
[1722224525525,3.29906736,3351.3,3350.8,2.38742]
[1722224525759,1.11713311,3351.5,3350.3,1.1485114]
[1722224525760,0.31257953,3351.5,3350.4,2.3722]
[1722224525957,2.3903,3352.4,3350.5,2.38769]
[1722224526184,0.31252285,3352.1,3351.5,2.38698]